bitfinex/quotes_BTCUSD_20241020
["timestamp","ask_amount","ask_price","bid_price","bid_amount"]
[1729447834354,0.86376746,68667.0,68666.0,0.001654]
[1729447835203,0.76522464,68667.0,68666.0,0.001654]
[1729447835611,0.76481109,68667.0,68666.0,0.001654]
[1729447836717,0.76681109,68667.0,68666.0,0.001654]
[1729447837434,0.76981109,68667.0,68666.0,0.001654]
[1729447837636,0.93951109,68667.0,68666.0,0.001654]
[1729447840440,0.93945885,68667.0,68666.0,0.001654]
[1729447843746,0.98149909,68667.0,68666.0,0.001654]
[1729447845499,0.93945885,68667.0,68666.0,0.001654]
[1729447849130,0.97692828,68667.0,68666.0,0.001654]
[1729447849348,1.01954259,68667.0,68666.0,0.001654]
[1729447849549,0.98207316,68667.0,68666.0,0.001654]
[1729447849962,0.98208383,68667.0,68666.0,0.001654]
[1729447850372,0.28292499,68662.0,68661.0,0.00211]
[1729447850580,0.94105703,68662.0,68661.0,0.00211]
[1729447850795,0.81033912,68662.0,68661.0,0.00211]
[1729447851003,0.85022846,68662.0,68661.0,0.00211]
[1729447851620,0.85022846,68662.0,68659.0,0.00396]
[1729447851621,0.01428499,68660.0,68659.0,0.00396]
[1729447851827,0.78835179,68660.0,68659.0,0.00396]
[1729447852008,1.02961056,68660.0,68659.0,0.00396]
[1729447852449,1.19931056,68660.0,68659.0,0.00396]
[1729447852653,1.19930418,68660.0,68659.0,0.00396]
[1729447854108,1.19930418,68660.0,68659.0,0.00196]
[1729447854765,1.19929597,68660.0,68659.0,0.00196]
[1729447856084,1.06859706,68660.0,68659.0,1e-06]
[1729447856285,1.06859706,68660.0,68648.0,0.21846622]
[1729447856286,0.25694899,68651.0,68648.0,0.21846622]
[1729447856565,0.87666757,68651.0,68648.0,0.21846622]
[1729447856800,0.87666757,68651.0,68637.0,0.0929]
[1729447856801,0.87907256,68651.0,68637.0,0.0929]
[1729447857733,0.87906634,68651.0,68637.0,0.0929]
[1729447858369,0.87906634,68651.0,68650.0,0.005694]
[1729447858800,0.77014391,68651.0,68650.0,0.005694]
[1729447859736,0.77233006,68651.0,68650.0,0.005694]
[1729447860219,0.77633006,68651.0,68650.0,0.005694]
[1729447861668,0.77833006,68651.0,68650.0,0.005694]
[1729447861911,0.82539231,68651.0,68650.0,0.005694]
[1729447862137,0.83039231,68651.0,68650.0,0.005694]
[1729447862810,0.83043793,68651.0,68650.0,0.005694]
[1729447863641,0.78137568,68651.0,68650.0,0.005694]
[1729447864251,0.95107568,68651.0,68650.0,0.005694]
[1729447865914,1.1695419,68651.0,68650.0,0.005694]
[1729447866118,1.08181968,68651.0,68650.0,0.005694]
[1729447868499,0.95107568,68651.0,68650.0,0.005694]
[1729447868749,1.10003483,68651.0,68650.0,0.005694]
[1729447870400,0.92327515,68651.0,68650.0,0.005694]
[1729447878781,0.82627515,68651.0,68650.0,0.005694]
[1729447880583,0.95701915,68651.0,68650.0,0.005694]
[1729447880993,0.82627515,68651.0,68650.0,0.005694]
[1729447881611,0.8688957,68651.0,68650.0,0.005694]
[1729447881831,0.9996397,68651.0,68650.0,0.005694]
[1729447882039,0.8688957,68651.0,68650.0,0.005694]
[1729447882241,0.9996397,68651.0,68650.0,0.005694]
[1729447883612,0.8688957,68651.0,68650.0,0.005694]
[1729447886831,1.0221957,68651.0,68650.0,0.005694]
[1729447886965,0.8688957,68651.0,68650.0,0.005694]
[1729447887590,0.7908957,68651.0,68650.0,0.005694]
[1729447894000,0.7917237,68651.0,68650.0,0.005694]
[1729447894551,0.9388107,68651.0,68650.0,0.005694]
[1729447894958,0.7917237,68651.0,68650.0,0.005694]
[1729447895162,0.93909611,68651.0,68650.0,0.005694]
[1729447895368,0.7917237,68651.0,68650.0,0.005694]
[1729447901399,0.79214766,68651.0,68650.0,0.005694]
[1729447903809,0.78814766,68651.0,68650.0,0.005694]
[1729447904022,0.78314766,68651.0,68650.0,0.005694]
[1729447904229,0.78714766,68651.0,68650.0,0.005694]
[1729447905357,0.79014766,68651.0,68650.0,0.005694]
[1729447905796,0.78714766,68651.0,68650.0,0.005694]
[1729447906022,0.79014766,68651.0,68650.0,0.005694]
[1729447906253,0.79021318,68651.0,68650.0,0.005694]
[1729447906963,0.92406682,68651.0,68650.0,0.005694]
[1729447907417,0.92406682,68651.0,68633.0,0.21846622]
[1729447907418,0.1457,68634.0,68633.0,0.21846622]
[1729447907653,0.31252457,68634.0,68633.0,0.21846622]
[1729447907896,0.14571,68629.0,68624.0,0.006654]
[1729447908139,0.4039649,68629.0,68625.0,0.005]
[1729447908378,0.5672375,68629.0,68624.0,0.001654]
[1729447908676,0.5672375,68629.0,68628.0,0.176356]
[1729447908890,0.45794175,68629.0,68628.0,0.176356]
[1729447909313,0.5672375,68629.0,68628.0,0.176356]
[1729447909515,0.45794175,68629.0,68628.0,0.176356]
[1729447909931,0.46012798,68629.0,68628.0,0.176356]
[1729447910551,0.54753812,68629.0,68628.0,0.176356]
[1729447910961,0.46009547,68629.0,68628.0,0.176356]
[1729447912933,0.54749449,68629.0,68628.0,0.176356]
[1729447915593,0.5474302,68629.0,68628.0,0.176356]
[1729447917933,0.54740648,68629.0,68628.0,0.176356]
[1729447918366,0.36429257,68629.0,68628.0,0.176356]
[1729447919037,0.46002539,68629.0,68628.0,0.176356]
[1729447919254,0.2987621,68629.0,68628.0,0.176356]
[1729447919687,0.2987621,68629.0,68628.0,0.339069]
[1729447919688,0.00409295,68629.0,68628.0,0.339069]
[1729447920321,0.00218623,68629.0,68628.0,0.339069]
[1729447921594,0.00218623,68629.0,68628.0,0.193356]
[1729447922242,0.00370776,68629.0,68628.0,0.193356]
[1729447922474,0.00218623,68629.0,68628.0,0.193356]
[1729447922714,0.15114538,68629.0,68628.0,0.176356]
[1729447922981,0.29685538,68629.0,68628.0,0.176356]
[1729447923222,0.36390056,68629.0,68628.0,0.176356]
[1729447923439,0.29838198,68629.0,68628.0,0.176356]
[1729447923684,0.36390121,68629.0,68628.0,0.176356]
[1729447923908,0.36390033,68629.0,68628.0,0.176356]
[1729447924571,0.45961583,68629.0,68628.0,0.176356]
[1729447924785,0.36389846,68629.0,68628.0,0.176356]
[1729447925209,0.36389801,68629.0,68628.0,0.176356]
[1729447925838,0.36389801,68629.0,68628.0,0.181356]
[1729447928316,0.36389801,68629.0,68628.0,0.176356]
[1729447928578,0.34205661,68629.0,68628.0,0.176356]
[1729447929450,0.29838198,68629.0,68628.0,0.176356]
[1729447929944,0.34205616,68629.0,68628.0,0.176356]
[1729447931687,0.29838198,68629.0,68628.0,0.176356]
[1729447932690,0.34205682,68629.0,68628.0,0.176356]
[1729447932890,0.29838198,68629.0,68628.0,0.176356]
[1729447933104,0.34205622,68629.0,68628.0,0.176356]
[1729447933964,0.29838198,68629.0,68628.0,0.176356]
[1729447934457,0.34205689,68629.0,68628.0,0.176356]
[1729447934701,0.34205625,68629.0,68628.0,0.176356]
[1729447935620,0.29838198,68629.0,68628.0,0.176356]
[1729447936173,0.34205712,68629.0,68628.0,0.176356]
[1729447936406,0.29838198,68629.0,68628.0,0.176356]
[1729447937666,0.34205798,68629.0,68628.0,0.176356]
[1729447937900,0.34205781,68629.0,68628.0,0.176356]
[1729447939621,0.34205855,68629.0,68628.0,0.176356]
[1729447939745,0.29838198,68629.0,68628.0,0.176356]
[1729447942289,0.34206018,68629.0,68628.0,0.176356]
[1729447942512,0.29838198,68629.0,68628.0,0.176356]
[1729447943639,0.34206147,68629.0,68628.0,0.176356]
[1729447943879,0.29838198,68629.0,68628.0,0.176356]
[1729447944851,0.36389572,68629.0,68628.0,0.176356]
[1729447945480,0.29838198,68629.0,68628.0,0.176356]
[1729447947512,0.34206602,68629.0,68628.0,0.176356]
[1729447948169,0.29838198,68629.0,68628.0,0.176356]
[1729447950028,0.34206978,68629.0,68628.0,0.176356]
[1729447950525,0.29838198,68629.0,68628.0,0.176356]
[1729447950778,0.36390629,68629.0,68628.0,0.176356]
[1729447951021,0.29838198,68629.0,68628.0,0.176356]
[1729447951269,0.36390629,68629.0,68628.0,0.176356]
[1729447951951,0.3639206,68629.0,68628.0,0.176356]
[1729447956632,0.3639206,68629.0,68628.0,0.098356]
[1729447956872,0.36392571,68629.0,68628.0,0.098356]
[1729447958801,0.29838198,68629.0,68628.0,0.098356]
[1729447961802,0.45969305,68629.0,68628.0,0.098356]
[1729447962037,0.29838198,68629.0,68628.0,0.098356]
[1729447963673,0.45969703,68629.0,68628.0,0.098356]
[1729447963820,0.29838198,68629.0,68628.0,0.098356]
[1729447964635,0.45969817,68629.0,68628.0,0.098356]
[1729447965719,0.29838198,68629.0,68628.0,0.098356]
[1729447966866,0.45970091,68629.0,68628.0,0.098356]
[1729447967834,0.54709256,68629.0,68628.0,0.098356]
[1729447968325,0.45970091,68629.0,68628.0,0.098356]
[1729447969061,0.48250727,68629.0,68628.0,0.098356]
[1729447975982,0.48261199,68629.0,68628.0,0.098356]
[1729447977941,0.4826116,68629.0,68628.0,0.098356]
[1729447984252,0.48261316,68629.0,68628.0,0.098356]
[1729447986523,0.48261316,68629.0,68628.0,0.001656]
[1729447987487,0.71030286,68629.0,68628.0,0.001656]
[1729447988152,0.57911316,68629.0,68628.0,0.001656]
[1729447988367,0.71027629,68629.0,68628.0,0.001656]
[1729447989004,0.73318057,68629.0,68628.0,0.001656]
[1729447989635,0.6020457,68629.0,68628.0,0.001656]
[1729447989846,0.73959155,68629.0,68628.0,0.001656]
[1729447991108,0.6020457,68629.0,68628.0,0.001656]
[1729447993416,0.5055457,68629.0,68628.0,0.001656]
[1729447998417,0.50542573,68629.0,68628.0,0.001656]
[1729448001407,0.48242573,68629.0,68628.0,0.001656]
[1729448003452,0.50542573,68629.0,68628.0,0.001656]
[1729448005131,0.48242573,68629.0,68628.0,0.001656]
[1729448005586,0.5697708,68629.0,68628.0,0.095456]
[1729448007782,0.48242573,68629.0,68628.0,0.095456]
[1729448007966,0.32118834,68629.0,68628.0,0.095456]
[1729448008172,0.48240919,68629.0,68628.0,0.095456]
[1729448013540,0.56976459,68629.0,68628.0,0.095456]
[1729448014608,0.48240919,68629.0,68628.0,0.095456]
[1729448014762,0.56976575,68629.0,68628.0,0.095456]
[1729448016742,0.569768,68629.0,68628.0,0.095456]
[1729448016919,0.48240919,68629.0,68628.0,0.095456]
[1729448019636,0.5915958,68629.0,68628.0,0.095456]
[1729448019840,0.48240919,68629.0,68628.0,0.095456]
[1729448020043,0.5915958,68629.0,68628.0,0.095456]
[1729448022539,0.59166339,68629.0,68628.0,0.095456]
[1729448023767,0.59167644,68629.0,68628.0,0.095456]
[1729448030510,0.48245727,68629.0,68628.0,0.095456]
[1729448032069,0.48027104,68629.0,68628.0,0.095456]
[1729448032276,0.48032085,68629.0,68628.0,0.095456]
[1729448033117,0.48250729,68629.0,68628.0,0.095456]
[1729448038045,0.48254065,68629.0,68628.0,0.095456]
[1729448039412,0.48101405,68629.0,68628.0,0.095456]
[1729448040952,0.48102602,68629.0,68628.0,0.095456]
[1729448046912,0.59031646,68629.0,68628.0,0.095456]
[1729448050358,0.48104939,68629.0,68628.0,0.095456]
[1729448056466,0.59034766,68629.0,68628.0,0.095456]
[1729448059973,0.59033611,68629.0,68628.0,0.095456]
[1729448064726,0.59032572,68629.0,68628.0,0.095456]
[1729448074389,0.59032331,68629.0,68628.0,0.095456]
[1729448076564,0.56751695,68629.0,68628.0,0.095456]
[1729448079254,0.56752743,68629.0,68628.0,0.095456]
[1729448086153,0.45823407,68629.0,68628.0,0.095456]
[1729448087168,0.56754314,68629.0,68628.0,0.095456]
[1729448087633,0.45823407,68629.0,68628.0,0.095456]
[1729448088993,0.45826486,68629.0,68628.0,0.095456]
[1729448091219,0.53478427,68629.0,68628.0,0.095456]
[1729448091446,0.38307546,68629.0,68628.0,0.095456]
[1729448091690,0.45826486,68629.0,68628.0,0.095456]
[1729448093301,0.30930571,68629.0,68628.0,0.095456]
[1729448098244,0.30932667,68629.0,68628.0,0.095456]
[1729448101520,0.27075864,68629.0,68628.0,0.095456]
[1729448101764,0.30714023,68629.0,68628.0,0.095456]
[1729448102006,0.30714262,68629.0,68628.0,0.095456]
[1729448102741,0.30714262,68629.0,68628.0,0.001656]
[1729448106433,0.36180639,68629.0,68628.0,0.001656]
[1729448106644,0.36181194,68629.0,68628.0,0.001656]
[1729448109013,0.51077109,68629.0,68628.0,0.001656]
[1729448109250,0.4233044,68629.0,68628.0,0.001656]
[1729448111558,0.53263498,68629.0,68628.0,0.001656]
[1729448112514,0.50250274,68629.0,68628.0,0.001656]
[1729448114879,0.42330274,68629.0,68628.0,0.001656]
[1729448118088,0.42413074,68629.0,68628.0,0.001656]
[1729448120687,0.42405518,68629.0,68628.0,0.001656]
[1729448123434,0.53333395,68629.0,68628.0,0.001656]
[1729448124454,0.53333418,68629.0,68628.0,0.001656]
[1729448124657,0.42405518,68629.0,68628.0,0.001656]
[1729448127108,0.53333344,68629.0,68628.0,0.001656]
[1729448127308,0.42405518,68629.0,68628.0,0.001656]
[1729448127507,0.53333404,68629.0,68628.0,0.001656]
[1729448127693,0.42405518,68629.0,68628.0,0.001656]
[1729448130376,0.42405187,68629.0,68628.0,0.001656]
[1729448131859,0.5333302,68629.0,68628.0,0.001656]
[1729448132077,0.42665254,68629.0,68628.0,0.001656]
[1729448132302,0.51407355,68629.0,68628.0,0.001656]
[1729448135132,0.51406931,68629.0,68628.0,0.001656]
[1729448137014,0.53687743,68629.0,68628.0,0.001656]
[1729448144662,0.53687566,68629.0,68628.0,0.001656]
[1729448150522,0.51406754,68629.0,68628.0,0.001656]
[1729448154303,0.51406544,68629.0,68628.0,0.001656]
[1729448158371,0.51405952,68629.0,68628.0,0.001656]
[1729448162442,0.51407613,68629.0,68628.0,0.001656]
[1729448164659,0.35271877,68629.0,68628.0,0.099656]
[1729448164885,0.36367076,68629.0,68628.0,0.11055725]
[1729448165133,0.36367076,68629.0,68628.0,0.099656]
[1729448165369,0.36367076,68629.0,68628.0,0.11055728]
[1729448165849,0.36367076,68629.0,68628.0,0.101656]
[1729448166318,0.29809782,68629.0,68628.0,0.11255567]
[1729448166548,0.29809782,68629.0,68628.0,0.101656]
[1729448166778,0.29809782,68629.0,68628.0,0.11055468]
[1729448167019,0.36366735,68629.0,68628.0,0.099656]
[1729448171050,0.36366735,68629.0,68628.0,0.001656]
[1729448171464,0.29809782,68629.0,68628.0,0.001656]
[1729448176665,0.45947276,68629.0,68628.0,0.001656]
[1729448176890,0.29809782,68629.0,68628.0,0.001656]
[1729448177098,0.36367217,68629.0,68628.0,0.001656]
[1729448177310,0.36367217,68629.0,68628.0,0.095156]
[1729448178620,0.29809782,68629.0,68628.0,0.095156]
[1729448178826,0.363673,68629.0,68628.0,0.095156]
[1729448179813,0.29809782,68629.0,68628.0,0.095156]
[1729448184940,0.36367268,68629.0,68628.0,0.095156]
[1729448185425,0.54691086,68629.0,68628.0,0.095156]
[1729448188424,0.54691088,68629.0,68628.0,0.095156]
[1729448193418,0.45947761,68629.0,68628.0,0.095156]
[1729448193642,0.36367522,68629.0,68628.0,0.10805573]
[1729448193891,0.29809782,68629.0,68628.0,0.10805573]
[1729448194433,0.29809782,68629.0,68628.0,0.10805561]
[1729448195420,0.29809782,68629.0,68628.0,0.10605561]
[1729448199075,0.3636722,68629.0,68628.0,0.095156]
[1729448205421,0.29809782,68629.0,68628.0,0.095156]
[1729448205859,0.29809782,68629.0,68628.0,0.10605404]
[1729448206738,0.29809782,68629.0,68628.0,0.10605414]
[1729448207178,0.29809782,68629.0,68628.0,0.095156]
[1729448207461,0.29809782,68629.0,68628.0,0.10605419]
[1729448207674,0.3636722,68629.0,68628.0,0.095156]
[1729448207886,0.29809782,68629.0,68628.0,0.095156]
[1729448209696,0.3636722,68629.0,68628.0,0.095156]
[1729448209920,0.29809782,68629.0,68628.0,0.095156]
[1729448210591,0.36367586,68629.0,68628.0,0.095156]
[1729448210815,0.29809782,68629.0,68628.0,0.095156]
[1729448213616,0.36367586,68629.0,68628.0,0.095156]
[1729448213846,0.29809782,68629.0,68628.0,0.095156]
[1729448216336,0.36367586,68629.0,68628.0,0.095156]
[1729448218562,0.3636749,68629.0,68628.0,0.095156]
[1729448219675,0.29809782,68629.0,68628.0,0.095156]
[1729448219900,0.36367499,68629.0,68628.0,0.095156]
[1729448221984,0.29809782,68629.0,68628.0,0.095156]
[1729448225883,0.29809782,68629.0,68628.0,0.095406]
[1729448231553,0.36367371,68629.0,68628.0,0.095406]
[1729448232689,0.36367575,68629.0,68628.0,0.095406]
[1729448243050,0.36367575,68629.0,68628.0,0.097406]
[1729448244969,0.36367575,68629.0,68628.0,0.095406]
[1729448251817,0.36369187,68629.0,68628.0,0.095406]
[1729448256654,0.36369168,68629.0,68628.0,0.095406]
[1729448262420,0.36297497,68629.0,68628.0,0.095406]
[1729448266169,0.36297645,68629.0,68628.0,0.095406]
[1729448267906,0.36297645,68629.0,68628.0,0.10629841]
[1729448271188,0.36297645,68629.0,68628.0,0.01279841]
[1729448273176,0.36297645,68629.0,68628.0,0.001906]
[1729448273389,0.36297645,68629.0,68628.0,0.01279854]
[1729448276804,0.36297645,68629.0,68628.0,0.01279851]
[1729448278830,0.36298226,68629.0,68628.0,0.01279851]
[1729448279057,0.36298226,68629.0,68628.0,0.10479851]
[1729448279309,0.29738111,68629.0,68628.0,0.10479851]
[1729448279961,0.29738111,68629.0,68628.0,0.34281151]
[1729448279962,0.00271196,68629.0,68628.0,0.34281151]
[1729448280179,0.00271196,68629.0,68628.0,0.34781151]
[1729448280622,0.000828,68629.0,68628.0,0.34781151]
[1729448280849,0.291392,68636.0,68635.0,0.005]
[1729448281064,0.437088,68636.0,68635.0,0.005]
[1729448281283,0.43870279,68636.0,68635.0,0.01589251]
[1729448283561,0.43870279,68636.0,68635.0,0.01587667]
[1729448284017,0.43870279,68636.0,68635.0,0.02675334]
[1729448284444,0.43870279,68636.0,68635.0,0.01587667]
[1729448286207,0.43870279,68636.0,68635.0,0.007]
[1729448293887,0.43953079,68636.0,68635.0,0.007]
[1729448294979,0.00244279,68636.0,68635.0,0.337498]
[1729448295651,0.000828,68636.0,68635.0,0.337498]
[1729448299015,0.000828,68636.0,68635.0,0.335498]
[1729448299241,0.00244771,68636.0,68635.0,0.335498]
[1729448299482,0.00244771,68636.0,68635.0,0.337498]
[1729448299900,0.000828,68636.0,68635.0,0.337498]
[1729448300348,0.00186771,68636.0,68635.0,0.337498]
[1729448300580,0.000248,68636.0,68635.0,0.337498]
[1729448300804,0.00186771,68636.0,68635.0,0.337498]
[1729448301023,0.000248,68636.0,68635.0,0.337498]
[1729448306264,0.00186772,68636.0,68635.0,0.337498]
[1729448306477,0.000248,68636.0,68635.0,0.337498]
[1729448306726,0.00187038,68636.0,68635.0,0.337498]
[1729448306969,0.000248,68636.0,68635.0,0.337498]
[1729448307185,0.00187037,68636.0,68635.0,0.337498]
[1729448307410,0.000248,68636.0,68635.0,0.337498]
[1729448307821,0.00187037,68636.0,68635.0,0.337498]
[1729448309534,0.00187037,68636.0,68635.0,0.1918]
[1729448309757,0.00187037,68636.0,68635.0,0.337498]
[1729448310626,0.000248,68636.0,68635.0,0.337498]
[1729448313594,0.00180713,68636.0,68635.0,0.337498]
[1729448313823,0.000248,68636.0,68635.0,0.337498]
[1729448314243,0.00180713,68636.0,68635.0,0.337498]
[1729448318803,0.00180713,68636.0,68635.0,0.339154]
[1729448320126,0.000248,68636.0,68635.0,0.339154]
[1729448320369,0.00180713,68636.0,68635.0,0.339154]
[1729448320587,0.000248,68636.0,68635.0,0.339154]
[1729448320808,0.00180713,68636.0,68635.0,0.339154]
[1729448321037,0.000248,68636.0,68635.0,0.339154]
[1729448321526,0.00180713,68636.0,68635.0,0.339154]
[1729448321725,0.000248,68636.0,68635.0,0.339154]
[1729448321964,0.00180713,68636.0,68635.0,0.339154]
[1729448322188,0.000248,68636.0,68635.0,0.339154]
[1729448322857,0.00180714,68636.0,68635.0,0.339154]
[1729448324147,0.000248,68636.0,68635.0,0.339154]
[1729448325640,0.00180713,68636.0,68635.0,0.339154]
[1729448336264,0.00336626,68636.0,68635.0,0.339154]
[1729448338440,0.00180713,68636.0,68635.0,0.339154]
[1729448338857,0.00336626,68636.0,68635.0,0.339154]
[1729448341046,0.00180713,68636.0,68635.0,0.339154]
[1729448341488,0.00336626,68636.0,68635.0,0.339154]
[1729448342772,0.00180713,68636.0,68635.0,0.339154]
[1729448343883,0.00336579,68636.0,68635.0,0.339154]
[1729448345883,0.00336579,68636.0,68635.0,0.49311315]
[1729448346133,0.000828,68650.0,68646.0,0.155674]
[1729448346134,0.0054421,68647.0,68646.0,0.155674]
[1729448346370,0.0054421,68647.0,68646.0,0.335874]
[1729448346582,0.0054421,68647.0,68646.0,0.1902]
[1729448346801,0.0054421,68647.0,68646.0,0.1922]
[1729448347236,0.0054421,68647.0,68646.0,0.1105]
[1729448347478,0.1511141,68647.0,68646.0,0.1105]
[1729448347921,0.1511141,68647.0,68646.0,0.007]
[1729448349487,0.14869864,68647.0,68646.0,0.007]
[1729448350841,0.29135,68646.0,68641.0,0.005]
[1729448351050,0.58598315,68646.0,68645.0,0.005]
[1729448351268,0.62966896,68646.0,68645.0,0.005]
[1729448351492,0.145679,68644.0,68643.0,0.005]
[1729448355308,0.146507,68644.0,68643.0,0.005]
[1729448358748,0.313207,68644.0,68643.0,0.005]
[1729448365063,0.31648715,68644.0,68643.0,0.005]
[1729448365304,0.46216615,68644.0,68643.0,0.005]
[1729448365527,0.3601707,68644.0,68643.0,0.005]
[1729448365807,0.5058497,68644.0,68643.0,0.005]
[1729448366453,0.3601707,68644.0,68643.0,0.005]
[1729448366668,0.145683,68642.0,68641.0,0.005]
[1729448366885,0.29464215,68642.0,68641.0,0.005]
[1729448378607,0.145683,68642.0,68641.0,0.005]
[1729448380641,0.145683,68642.0,68641.0,0.006654]
[1729448385115,0.145683,68642.0,68641.0,0.008654]
[1729448385332,0.145683,68642.0,68641.0,0.006654]
[1729448388945,0.145683,68642.0,68641.0,1.006654]
[1729448397243,0.78920837,68642.0,68641.0,1.001654]
[1729448397495,0.75315269,68642.0,68641.0,1.001654]
[1729448398196,0.73206265,68642.0,68641.0,1.001654]
[1729448399094,0.73202029,68642.0,68641.0,1.001654]
[1729448401009,0.73198105,68642.0,68641.0,1.001654]
[1729448407361,0.7547868,68642.0,68641.0,1.001654]
[1729448408519,0.86388549,68642.0,68641.0,1.001654]
[1729448410100,0.86370362,68642.0,68641.0,1.001654]
[1729448411525,0.68760362,68642.0,68641.0,1.001654]
[1729448413312,0.57851866,68642.0,68641.0,1.001654]
[1729448414650,0.57851866,68642.0,68641.0,0.001654]
[1729448418286,0.66575283,68642.0,68641.0,0.001654]
[1729448419642,0.66568334,68642.0,68641.0,0.001654]
[1729448420518,0.57845167,68642.0,68641.0,0.001654]
[1729448421596,0.66568334,68642.0,68641.0,0.001654]
[1729448430422,0.57845167,68642.0,68641.0,0.001654]
[1729448432750,0.68749126,68642.0,68641.0,0.001654]
[1729448434064,0.68763134,68642.0,68641.0,0.001654]
[1729448434899,0.57853519,68642.0,68641.0,0.001654]
[1729448438827,0.57864087,68642.0,68641.0,0.001654]
[1729448442420,0.70964214,68642.0,68641.0,0.001654]
[1729448443316,0.57864087,68642.0,68641.0,0.001654]
[1729448443505,0.57886669,68642.0,68641.0,0.001654]
[1729448447600,0.54996669,68642.0,68641.0,0.001654]
[1729448448502,0.54996791,68642.0,68641.0,0.001654]
[1729448458234,0.54997142,68642.0,68641.0,0.001654]
[1729448459306,0.54997173,68642.0,68641.0,0.001654]
[1729448461825,0.54997349,68642.0,68641.0,0.001654]
[1729448462509,0.55080149,68642.0,68641.0,0.001654]
[1729448464833,0.68198863,68642.0,68641.0,0.097854]
[1729448465042,0.30184234,68642.0,68641.0,0.182054]
[1729448465265,0.14041675,68642.0,68641.0,0.182054]
[1729448465473,0.184116,68642.0,68641.0,0.182054]
[1729448466609,0.14041675,68642.0,68641.0,0.182054]
[1729448466816,0.14041675,68642.0,68641.0,0.184054]
[1729448467038,0.14041675,68642.0,68641.0,0.182054]
[1729448467259,0.117611,68642.0,68641.0,0.182054]
[1729448470455,0.117611,68642.0,68641.0,0.184054]
[1729448471583,0.117611,68642.0,68641.0,0.182054]
[1729448472543,0.117611,68642.0,68641.0,0.184054]
[1729448472774,0.117611,68642.0,68641.0,0.182054]
[1729448473959,0.117611,68642.0,68641.0,0.184054]
[1729448474417,0.117611,68642.0,68641.0,0.182054]
[1729448474640,0.117611,68642.0,68641.0,0.184054]
[1729448474869,0.117611,68642.0,68641.0,0.182054]
[1729448478426,0.117611,68642.0,68641.0,0.184054]
[1729448478950,0.117611,68642.0,68641.0,0.17548674]
[1729448486580,0.117611,68642.0,68641.0,0.09628674]
[1729448488168,0.117611,68642.0,68641.0,0.09794274]
[1729448499473,0.117611,68642.0,68641.0,0.09994274]
[1729448499903,0.117611,68642.0,68641.0,0.09794274]
[1729448509548,0.16127116,68642.0,68641.0,0.09794274]
[1729448510394,0.117611,68642.0,68641.0,0.09794274]
[1729448510835,0.16131804,68642.0,68641.0,0.09794274]
[1729448513927,0.16131667,68642.0,68641.0,0.09794274]
[1729448515407,0.117611,68642.0,68641.0,0.09794274]
[1729448522880,0.16131364,68642.0,68641.0,0.09794274]
[1729448523573,0.000828,68642.0,68641.0,0.09794274]
[1729448524243,0.146511,68642.0,68641.0,0.09794274]
[1729448531629,0.19021321,68642.0,68641.0,0.09794274]
[1729448531844,0.146511,68642.0,68641.0,0.006656]
[1729448532058,0.19021321,68642.0,68641.0,0.006656]
[1729448532725,0.146511,68642.0,68641.0,0.006656]
[1729448535735,0.47007015,68642.0,68641.0,0.006656]
[1729448535962,0.71880567,68642.0,68641.0,0.006656]
[1729448536170,0.63140124,68642.0,68641.0,0.001656]
[1729448536398,0.74065678,68642.0,68641.0,0.006656]
[1729448537138,0.74065678,68642.0,68641.0,0.001656]
[1729448537620,0.63140124,68642.0,68641.0,0.001656]
[1729448538544,0.63140124,68642.0,68641.0,0.006656]
[1729448538764,0.45680124,68642.0,68641.0,0.006656]
[1729448539447,0.29547015,68642.0,68641.0,0.006656]
[1729448539901,0.54413458,68642.0,68641.0,0.006656]
[1729448541064,0.544129,68642.0,68641.0,0.006656]
[1729448543665,0.45674854,68642.0,68641.0,0.006656]
[1729448543874,0.29547015,68642.0,68641.0,0.006656]
[1729448544081,0.36100056,68642.0,68641.0,0.006656]
[1729448545852,0.36099877,68642.0,68641.0,0.006656]
[1729448546068,0.29547015,68642.0,68641.0,0.006656]
[1729448546493,0.45673367,68642.0,68641.0,0.006656]
[1729448547142,0.36099864,68642.0,68641.0,0.006656]
[1729448549536,0.4567231,68642.0,68641.0,0.006656]
[1729448549956,0.36099477,68642.0,68641.0,0.006656]
[1729448550615,0.45672445,68642.0,68641.0,0.006656]
[1729448550829,0.36099461,68642.0,68641.0,0.006656]
[1729448551886,0.29547015,68642.0,68641.0,0.006656]
[1729448552326,0.36099408,68642.0,68641.0,0.006656]
[1729448554206,0.46099408,68642.0,68641.0,0.006656]
[1729448560809,0.46099408,68642.0,68641.0,0.006656]
[1729448564405,0.39547015,68642.0,68641.0,0.006656]
[1729448567471,0.55673806,68642.0,68641.0,0.006656]
[1729448567696,0.64410955,68642.0,68641.0,0.006656]
[1729448568115,0.39547015,68642.0,68641.0,0.006656]
[1729448568553,0.55674686,68642.0,68641.0,0.006656]
[1729448568972,0.31204359,68642.0,68641.0,0.102056]
[1729448569190,0.246511,68642.0,68641.0,0.102056]
[1729448570257,0.29020035,68642.0,68641.0,0.104056]
[1729448570475,0.246511,68642.0,68641.0,0.102056]
[1729448570906,0.246511,68642.0,68641.0,0.104056]
[1729448571641,0.246511,68642.0,68641.0,0.102956]
[1729448572979,0.000828,68642.0,68641.0,0.102956]
[1729448573208,0.100828,68642.0,68641.0,0.182656]
[1729448574061,0.246511,68642.0,68641.0,0.182656]
[1729448574291,0.000828,68642.0,68641.0,0.182656]
[1729448574507,0.246511,68642.0,68641.0,0.182656]
[1729448580599,0.246511,68642.0,68641.0,0.180656]
[1729448581737,0.246511,68642.0,68641.0,0.100956]
[1729448585225,0.246511,68642.0,68641.0,0.102956]
[1729448586232,0.000828,68642.0,68641.0,0.185256]
[1729448586449,0.000828,68642.0,68641.0,0.195256]
[1729448587637,0.000828,68642.0,68641.0,0.340941]
[1729448592900,0.000828,68642.0,68641.0,0.778001]
[1729448596380,0.000828,68642.0,68641.0,0.783001]
[1729448597893,0.000828,68642.0,68641.0,0.781001]
[1729448598075,0.000828,68642.0,68641.0,0.783001]
[1729448598283,0.000828,68642.0,68641.0,0.93196015]
[1729448599168,0.000828,68642.0,68641.0,0.94196015]
[1729448600228,0.000828,68644.0,68643.0,0.177681]